lending/lending_fUSD_20240721
["ID","MTS","AMOUNT","RATE_DAILY","PERIOD"]
[332835864,1721562458267,-500.0,0.00044657,60]
[332835865,1721562458298,-500.0,0.00044657,60]
[332835866,1721562458328,-500.0,0.00044657,60]
[332835867,1721562458357,-500.0,0.00044657,60]
[332835868,1721562458387,-500.0,0.00044657,60]
[332835869,1721562458417,-500.0,0.00044657,60]
[332835870,1721562458447,-500.0,0.00044657,60]
[332835871,1721562458478,-500.0,0.00044657,60]
[332835872,1721562458509,-500.0,0.00044657,60]
[332835873,1721562458540,-500.0,0.00044657,60]
[332835874,1721562458571,-627.21,0.00044657,60]
[332835875,1721562458603,-500.0,0.00044657,60]
[332835876,1721562458634,-500.0,0.00044657,60]
[332835877,1721562458664,-500.0,0.00044657,60]
[332835878,1721562458696,-583.69,0.00044657,60]
[332835879,1721562458727,-500.0,0.00044657,60]
[332835880,1721562458758,-627.42878499,0.00044657,60]
[332835881,1721562458789,-500.0,0.00044657,60]
[332835882,1721562458820,-500.0,0.00044657,60]
[332835883,1721562458853,-1086.76,0.00044657,60]
[332835884,1721562458885,-500.0,0.00044657,60]
[332835885,1721562458916,-1232.08,0.00044657,60]
[332835886,1721562458949,-500.0,0.00044657,60]
[332835887,1721562458982,-502.48592639,0.00044657,60]
[332835888,1721562459014,-906.24,0.00044657,60]
[332835889,1721562459048,-500.0,0.00044657,60]
[332835890,1721562459081,-1235.37,0.00044657,60]
[332835891,1721562459113,-500.0,0.00044657,60]
[332835892,1721562459144,-1269.86,0.00044657,60]
[332835893,1721562459175,-500.0,0.00044657,60]
[332835894,1721562459206,-500.0,0.00044657,60]
[332835895,1721562459237,-500.0,0.00044657,60]
[332835896,1721562459267,-200.0,0.00044657,60]
[332835897,1721562459297,-500.0,0.00044657,60]
[332835898,1721562459327,-500.0,0.00044657,60]
[332835899,1721562459358,-500.0,0.00044657,60]
[332835900,1721562459388,-500.0,0.00044657,60]
[332835901,1721562459418,-500.0,0.00044657,60]
[332835902,1721562459449,-514.86,0.00044657,60]
[332835903,1721562459479,-500.0,0.00044657,60]
[332835904,1721562459508,-573.37,0.00044657,60]
[332835905,1721562459537,-500.0,0.00044657,60]
[332835906,1721562459566,-1000.0,0.00044657,60]
[332835907,1721562459596,-500.0,0.00044657,60]
[332835908,1721562459629,-724.14,0.00044657,60]
[332835909,1721562459662,-644.44,0.00044657,60]
[332835910,1721562459691,-500.0,0.00044657,60]
[332835911,1721562459723,-500.0,0.00044657,60]
[332835912,1721562459753,-500.0,0.00044657,60]
[332835913,1721562459788,-604.49,0.00044657,60]
[332835914,1721562459820,-500.0,0.00044657,60]
[332835915,1721562459854,-556.68,0.00044657,60]
[332835916,1721562459885,-500.0,0.00044657,60]
[332835917,1721562459917,-500.0,0.00044657,60]
[332835918,1721562459951,-480.35475433,0.00044657,60]
[332835919,1721562459984,-777.65,0.00044657,60]
[332835920,1721562460016,-761.21,0.00044657,60]
[332835921,1721562460048,-500.0,0.00044657,60]
[332835922,1721562460082,-500.0,0.00044657,60]
[332835923,1721562460116,-500.0,0.00044657,60]
[332835924,1721562460151,-1228.36,0.00044657,60]
[332835925,1721562460184,-630.64276854,0.00044657,60]
[332835926,1721562460217,-580.68,0.00044657,60]
[332835927,1721562460249,-500.0,0.00044657,60]
[332835928,1721562460279,-504.32478351,0.00044657,60]
[332835929,1721562460513,-500.0,0.00044657,60]
[332835930,1721562460549,-500.0,0.00044657,60]
[332835931,1721562460582,-500.0,0.00044657,60]
[332835932,1721562460615,-500.0,0.00044657,60]
[332835933,1721562460649,-500.0,0.00044657,60]
[332835934,1721562460683,-500.0,0.00044657,60]
[332835935,1721562460716,-688.11,0.00044657,60]
[332835936,1721562460750,-358.75122836,0.00044657,60]
[332835937,1721562460784,-500.0,0.00044657,60]
[332835938,1721562460815,-500.0,0.00044657,60]
[332835939,1721562460847,-1135.36,0.00044657,60]
[332835940,1721562460880,-1179.49,0.00044657,60]
[332835941,1721562460915,-500.0,0.00044657,60]
[332835942,1721562460950,-500.0,0.00044657,60]
[332835943,1721562460985,-587.66,0.00044657,60]
[332835944,1721562461021,-945.04,0.00044657,60]
[332835945,1721562461060,-500.0,0.00044657,60]
[332835946,1721562461095,-500.0,0.00044657,60]
[332835947,1721562461128,-500.0,0.00044657,60]
[332835948,1721562461163,-500.0,0.00044657,60]
[332835949,1721562461197,-775.44,0.00044657,60]
[332835950,1721562461232,-500.0,0.00044657,60]
[332835951,1721562461269,-748.56,0.00044657,60]
[332835952,1721562461302,-500.0,0.00044657,60]
[332835953,1721562461339,-631.09,0.00044657,60]
[332835954,1721562461372,-555.58,0.00044657,60]
[332835955,1721562461405,-500.0,0.00044657,60]
[332835956,1721562461437,-346.37709336,0.00044657,60]
[332835957,1721562461470,-502.90603127,0.00044657,60]
[332835958,1721562461502,-774.16,0.00044657,60]
[332835959,1721562461534,-631.09,0.00044657,60]
[332835960,1721562461566,-1597.81,0.00044657,60]
[332835961,1721562461598,-500.0,0.00044657,60]
[332835962,1721562461630,-962.17,0.00044657,60]
[332835963,1721562461660,-500.0,0.00044657,60]
[332835964,1721562461690,-500.0,0.00044657,60]
[332835965,1721562461721,-500.0,0.00044657,60]
[332835966,1721562461751,-500.0,0.00044657,60]
[332835967,1721562461780,-500.0,0.00044657,60]
[332835968,1721562461811,-500.0,0.00044657,60]
[332835969,1721562461843,-500.0,0.00044657,60]
[332835970,1721562461874,-767.96,0.00044657,60]
[332835971,1721562461906,-500.0,0.00044657,60]
[332835972,1721562461939,-500.0,0.00044657,60]
[332835973,1721562461971,-528.85,0.00044657,60]
[332835974,1721562462006,-500.0,0.00044657,60]
[332835975,1721562462043,-500.0,0.00044657,60]
[332835976,1721562462076,-500.0,0.00044657,60]
[332835977,1721562462111,-500.0,0.00044657,60]
[332835978,1721562462147,-609.59,0.00044657,60]
[332835979,1721562462182,-500.0,0.00044657,60]
[332835980,1721562462218,-658.66,0.00044657,60]
[332835981,1721562462253,-1294.17,0.00044657,60]
[332835982,1721562462287,-918.46,0.00044657,60]
[332835983,1721562462319,-613.96,0.00044657,60]
[332835984,1721562462351,-575.24,0.00044657,60]
[332835985,1721562462384,-500.0,0.00044657,60]
[332835986,1721562462416,-744.63,0.00044657,60]
[332835987,1721562462447,-1861.87,0.00044657,60]
[332835988,1721562462482,-599.7,0.00044657,60]
[332835989,1721562462515,-500.0,0.00044657,60]
[332835990,1721562462548,-500.0,0.00044657,60]
[332835991,1721562462581,-714.25,0.00044657,60]
[332835992,1721562462614,-996.46,0.00044657,60]
[332835993,1721562462646,-557.22391009,0.00044657,60]
[332835994,1721562462678,-500.0,0.00044657,60]
[332835995,1721562462710,-500.0,0.00044657,60]
[332835996,1721562462744,-500.0,0.00044657,60]
[332835997,1721562462776,-1084.78,0.00044657,60]
[332835998,1721562462807,-500.0,0.00044657,60]
[332835999,1721562462840,-2388.81,0.00044657,60]
[332836000,1721562462872,-500.0,0.00044657,60]
[332836001,1721562462902,-598.93,0.00044657,60]
[332836002,1721562462933,-500.0,0.00044657,60]
[332836003,1721562462964,-500.0,0.00044657,60]
[332836004,1721562462995,-1303.3,0.00044657,60]
[332836005,1721562463025,-500.0,0.00044657,60]
[332836006,1721562463060,-500.0,0.00044657,60]
[332836007,1721562463092,-500.0,0.00044657,60]
[332836008,1721562463124,-788.43,0.00044657,60]
[332836009,1721562463155,-500.0,0.00044657,60]
[332836010,1721562463187,-746.44,0.00044657,60]
[332836011,1721562463219,-1276.61,0.00044657,60]
[332836012,1721562463251,-558.18,0.00044657,60]
[332836013,1721562463281,-670.72,0.00044657,60]
[332836014,1721562463312,-542.49,0.00044657,60]
[332836015,1721562463342,-500.0,0.00044657,60]
[332836016,1721562463377,-562.88,0.00044657,60]
[332836017,1721562463408,-500.0,0.00044657,60]
[332836018,1721562463439,-500.0,0.00044657,60]
[332836019,1721562463469,-500.0,0.00044657,60]
[332836020,1721562463501,-500.0,0.00044657,60]
[332836021,1721562463532,-500.0,0.00044657,60]
[332836022,1721562463564,-500.0,0.00044657,60]
[332836023,1721562463595,-500.0,0.00044657,60]
[332836024,1721562463625,-500.0,0.00044657,60]
[332836025,1721562463657,-500.0,0.00044657,60]
[332836026,1721562463691,-500.0,0.00044657,60]
[332836027,1721562463722,-592.17,0.00044657,60]
[332836028,1721562463756,-500.0,0.00044657,60]
[332836029,1721562463791,-500.0,0.00044657,60]
[332836030,1721562463822,-500.0,0.00044657,60]
[332836031,1721562463853,-500.0,0.00044657,60]
[332836032,1721562464689,-1623.76,0.00044657,60]
[332836033,1721562464920,-905.81,0.00044657,60]
[332836034,1721562464958,-500.0,0.00044657,60]
[332836035,1721562464994,-500.0,0.00044657,60]
[332836036,1721562465029,-500.0,0.00044657,60]
[332836037,1721562465068,-500.0,0.00044657,60]
[332836038,1721562465104,-500.0,0.00044657,60]
[332836039,1721562465139,-500.0,0.00044657,60]
[332836040,1721562465173,-500.0,0.00044657,60]
[332836041,1721562465206,-598.73,0.00044657,60]
[332836042,1721562465239,-500.0,0.00044657,60]
[332836043,1721562465271,-912.84,0.00044657,60]
[332836044,1721562465309,-500.0,0.00044657,60]
[332836045,1721562465341,-500.0,0.00044657,60]
[332836046,1721562465374,-633.92623862,0.00044657,60]
[332836047,1721562465870,-500.0,0.00044657,60]
[332836048,1721562465907,-500.0,0.00044657,60]
[332836049,1721562465941,-500.0,0.00044657,60]
[332836050,1721562465977,-500.0,0.00044657,60]
[332836051,1721562466013,-500.0,0.00044657,60]
[332836052,1721562466047,-500.0,0.00044657,60]
[332836053,1721562466080,-500.0,0.00044657,60]
[332836054,1721562466114,-500.0,0.00044657,60]
[332836055,1721562466149,-343.16004851,0.00044657,60]
[332836056,1721562466183,-1434.64,0.00044657,60]
[332836057,1721562466216,-691.27,0.00044657,60]
[332836058,1721562466248,-500.0,0.00044657,60]
[332836059,1721562466280,-500.0,0.00044657,60]
[332836060,1721562466312,-500.0,0.00044657,60]
[332836061,1721562466344,-500.0,0.00044657,60]
[332836062,1721562466375,-500.0,0.00044657,60]
[332836063,1721562466407,-500.0,0.00044657,60]
[332836064,1721562466438,-764.64,0.00044657,60]
[332836065,1721562466469,-545.67,0.00044657,60]
[332836066,1721562466499,-500.0,0.00044657,60]
[332836067,1721562466531,-500.0,0.00044657,60]
[332836068,1721562466567,-500.0,0.00044657,60]
[332836069,1721562466597,-500.0,0.00044657,60]
[332836070,1721562466629,-500.0,0.00044657,60]
[332836071,1721562466662,-548.74,0.00044657,60]
[332836072,1721562466693,-502.01784383,0.00044657,60]
[332836073,1721562466725,-500.0,0.00044657,60]
[332836074,1721562466758,-1666.69,0.00044657,60]
[332836075,1721562466791,-1260.61,0.00044657,60]
[332836076,1721562466822,-500.0,0.00044657,60]
[332836077,1721562466853,-500.0,0.00044657,60]
[332836078,1721562466885,-500.0,0.00044657,60]
[332836079,1721562466916,-245.0,0.00044657,60]
[332836080,1721562466950,-457.01235027,0.00044657,60]
[332836081,1721562466982,-555.93,0.00044657,60]
[332836082,1721562467018,-506.69042455,0.00044657,60]
[332836083,1721562467052,-500.0,0.00044657,60]
[332836084,1721562467085,-841.26,0.00044657,60]
[332836085,1721562467119,-168.08314142,0.00044657,60]
[332836086,1721562467155,-556.17,0.00044657,60]
[332836087,1721562467187,-625.80318993,0.00044657,60]
[332836088,1721562467217,-583.12,0.00044657,60]
[332836089,1721562467248,-611.71,0.00044657,60]
[332836090,1721562467279,-504.49547953,0.00044657,60]
[332836091,1721562467310,-860.69,0.00044657,60]
[332836092,1721562467341,-500.0,0.00044657,60]
[332836093,1721562467373,-500.0,0.00044657,30]
[332836094,1721562467403,-744.21,0.00044657,60]
[332836095,1721562467433,-537.23,0.00044657,60]
[332836096,1721562467466,-500.0,0.00044657,60]
[332836097,1721562467498,-500.0,0.00044657,60]
[332836098,1721562467529,-500.0,0.00044657,60]
[332836099,1721562467560,-500.0,0.00044657,60]
[332836100,1721562467591,-907.17,0.00044657,60]
[332836101,1721562467622,-500.0,0.00044657,60]
[332836102,1721562467655,-500.0,0.00044657,60]
[332836103,1721562467685,-919.51,0.00044657,60]
[332836104,1721562467716,-500.0,0.00044657,60]
[332836105,1721562467747,-500.0,0.00044657,60]
[332836106,1721562467780,-500.0,0.00044657,60]
[332836107,1721562467810,-500.0,0.00044657,60]
[332836108,1721562467840,-500.0,0.00044657,60]
[332836109,1721562467872,-500.0,0.00044657,60]
[332836110,1721562467902,-500.0,0.00044657,60]
[332836111,1721562467933,-929.49,0.00044657,60]
[332836112,1721562467966,-500.0,0.00044657,60]
[332836113,1721562467996,-757.82,0.00044657,60]
[332836114,1721562468027,-500.0,0.00044657,60]
[332836115,1721562468064,-506.15942385,0.00044657,60]
[332836116,1721562468096,-500.0,0.00044657,60]
[332836117,1721562468129,-500.0,0.00044657,60]
[332836118,1721562468160,-500.0,0.00044657,60]
[332836119,1721562468192,-505.77702612,0.00044657,60]
[332836120,1721562468226,-770.43,0.00044657,60]
[332836121,1721562468258,-500.0,0.00044657,60]
[332836122,1721562468289,-991.31,0.00044657,60]
[332836123,1721562468322,-500.0,0.00044657,60]
[332836124,1721562468354,-504.96183416,0.00044657,60]
[332836125,1721562468386,-995.47,0.00044657,60]
[332836126,1721562468418,-1684.14,0.00044657,60]
[332836127,1721562468449,-500.0,0.00044657,60]
[332836128,1721562468480,-500.0,0.00044657,60]
[332836129,1721562468512,-794.71,0.00044657,60]
[332836130,1721562468544,-500.0,0.00044657,60]
[332836131,1721562468574,-500.0,0.00044657,60]
[332836132,1721562468604,-500.0,0.00044657,60]
[332836133,1721562468636,-500.0,0.00044657,60]
[332836134,1721562468666,-500.0,0.00044657,60]
[332836135,1721562468697,-756.47,0.00044657,60]
[332836136,1721562468728,-359.84361247,0.00044657,60]
[332836137,1721562468970,-500.0,0.00044657,60]
[332836138,1721562469005,-1355.1,0.00044657,60]
[332836139,1721562469042,-500.0,0.00044657,60]
[332836140,1721562469076,-500.0,0.00044657,60]
[332836141,1721562469110,-500.0,0.00044657,60]
[332836142,1721562469146,-500.0,0.00044657,60]
[332836143,1721562469180,-500.0,0.00044657,60]
[332836144,1721562469214,-500.0,0.00044657,60]
[332836145,1721562469247,-1476.27,0.00044657,60]
[332836146,1721562469279,-646.14,0.00044657,60]
[332836147,1721562469311,-502.55507868,0.00044657,60]
[332836148,1721562469342,-500.0,0.00044657,60]
[332836149,1721562469375,-653.84,0.00044657,60]
[332836150,1721562469409,-500.0,0.00044657,60]
[332836151,1721562469442,-500.0,0.00044657,60]
[332836152,1721562469475,-1587.36,0.00044657,60]
[332836153,1721562469510,-1034.87,0.00044657,60]
[332836154,1721562469544,-516.56972762,0.00044657,60]
[332836155,1721562469578,-500.0,0.00044657,60]
[332836156,1721562469611,-2193.88,0.00044657,60]
[332836157,1721562469644,-1249.02,0.00044657,60]
[332836158,1721562469679,-1905.81,0.00044657,60]
[332836159,1721562469711,-500.0,0.00044657,60]
[332836160,1721562469744,-1263.86,0.00044657,60]
[332836161,1721562469777,-500.0,0.00044657,60]
[332836162,1721562469809,-502.14398852,0.00044657,60]
[332836163,1721562469841,-500.0,0.00044657,60]
[332836164,1721562469873,-1105.89,0.00044657,60]
[332836165,1721562469907,-500.0,0.00044657,60]
[332836166,1721562469943,-506.47141715,0.00044657,60]
[332836167,1721562469986,-500.0,0.00044657,60]
[332836168,1721562470024,-500.0,0.00044657,60]
[332836169,1721562470066,-917.61,0.00044657,60]
[332836170,1721562470101,-500.0,0.00044657,60]
[332836171,1721562470138,-1549.16,0.00044657,60]
[332836172,1721562470173,-500.0,0.00044657,60]
[332836173,1721562470210,-500.0,0.00044657,60]
[332836174,1721562470246,-2094.02,0.00044657,60]
[332836175,1721562470281,-500.0,0.00044657,60]
[332836176,1721562470316,-500.0,0.00044657,60]
[332836177,1721562470349,-606.14758331,0.00044657,60]
[332836178,1721562470383,-1771.08,0.00044657,60]
[332836179,1721562470417,-500.0,0.00044657,60]
[332836180,1721562470449,-500.0,0.00044657,60]
[332836181,1721562470482,-500.0,0.00044657,60]
[332836182,1721562470517,-500.0,0.00044657,60]
[332836183,1721562470549,-950.12,0.00044657,60]
[332836184,1721562470581,-500.0,0.00044657,60]
[332836185,1721562470612,-847.76,0.00044657,60]
[332836186,1721562470644,-1765.44,0.00044657,60]
[332836187,1721562470674,-505.85565046,0.00044657,60]
[332836188,1721562470705,-932.75,0.00044657,60]
[332836189,1721562470735,-1544.42,0.00044657,60]
[332836190,1721562470768,-500.0,0.00044657,60]
[332836191,1721562470798,-790.55,0.00044657,60]
[332836192,1721562470831,-500.0,0.00044657,60]
[332836193,1721562470863,-500.0,0.00044657,60]
[332836194,1721562470896,-984.42,0.00044657,60]
[332836195,1721562470932,-831.17,0.00044657,60]
[332836196,1721562470968,-532.82,0.00044657,60]
[332836197,1721562471002,-500.0,0.00044657,60]
[332836198,1721562471038,-581.87,0.00044657,60]
[332836199,1721562471072,-946.96,0.00044657,60]
[332836200,1721562471106,-500.0,0.00044657,60]
[332836201,1721562471143,-702.37,0.00044657,60]
[332836202,1721562471177,-1583.64,0.00044657,60]
[332836203,1721562471211,-500.0,0.00044657,60]
[332836204,1721562471246,-500.0,0.00044657,60]
[332836205,1721562471280,-500.0,0.00044657,60]
[332836206,1721562471314,-504.55914657,0.00044657,60]
[332836207,1721562471346,-500.0,0.00044657,60]
[332836208,1721562471378,-1587.58,0.00044657,60]
[332836209,1721562471410,-539.61,0.00044657,60]
[332836210,1721562471442,-500.0,0.00044657,60]
[332836211,1721562471473,-500.0,0.00044657,60]
[332836212,1721562471504,-500.0,0.00044657,60]
[332836213,1721562471538,-1013.58,0.00044657,60]
[332836214,1721562471570,-2048.3,0.00044657,60]
[332836215,1721562471601,-1686.99,0.00044657,60]
[332836216,1721562471633,-1659.73,0.00044657,60]
[332836217,1721562471666,-500.0,0.00044657,60]
[332836218,1721562471698,-500.0,0.00044657,60]
[332836219,1721562471730,-500.0,0.00044657,60]
[332836220,1721562471762,-634.61895572,0.00044657,60]
[332836221,1721562471795,-500.0,0.00044657,60]
[332836222,1721562471827,-1366.59,0.00044657,60]
[332836223,1721562471859,-500.0,0.00044657,60]
[332836224,1721562471892,-909.73,0.00044657,60]
[332836225,1721562471924,-500.0,0.00044657,60]
[332836226,1721562471957,-580.4,0.00044657,60]
[332836227,1721562471990,-500.0,0.00044657,60]
[332836228,1721562472022,-500.0,0.00044657,60]
[332836229,1721562472055,-2376.13,0.00044657,60]
[332836230,1721562472089,-913.7,0.00044657,60]
[332836231,1721562472122,-500.0,0.00044657,60]
[332836232,1721562472156,-500.0,0.00044657,60]
[332836233,1721562472190,-500.0,0.00044657,60]
[332836234,1721562472226,-504.70954604,0.00044657,60]
[332836235,1721562472265,-500.0,0.00044657,60]
[332836236,1721562472298,-1861.5,0.00044657,60]
[332836237,1721562472330,-500.0,0.00044657,60]
[332836238,1721562472362,-1403.22,0.00044657,60]
[332836239,1721562472395,-500.0,0.00044657,60]
[332836240,1721562472427,-500.0,0.00044657,60]
[332836241,1721562472703,-472.85562486,0.00044657,60]
[332836242,1721562472738,-1119.61,0.00044657,60]
[332836243,1721562472774,-270.48834346,0.00044657,60]
[332836244,1721562472807,-150.0,0.00044657,60]
[332836245,1721562472840,-500.0,0.00044657,60]
[332836246,1721562472873,-500.0,0.00044657,60]
[332836247,1721562472909,-1244.18,0.00044657,60]
[332836248,1721562472945,-500.0,0.00044657,60]
[332836249,1721562472979,-500.0,0.00044657,60]
[332836250,1721562473014,-1864.71,0.00044657,60]
[332836251,1721562473049,-2314.69,0.00044657,60]
[332836252,1721562473086,-993.91,0.00044657,60]
[332836253,1721562473122,-500.0,0.00044657,60]
[332836254,1721562473157,-500.0,0.00044657,60]
[332836255,1721562473191,-500.0,0.00044657,60]
[332836256,1721562473226,-2457.36,0.00044657,60]
[332836257,1721562473263,-557.62,0.00044657,60]
[332836258,1721562473297,-500.0,0.00044657,60]
[332836259,1721562473333,-500.0,0.00044657,60]
[332836260,1721562473367,-692.68,0.00044657,60]
[332836261,1721562473400,-500.0,0.00044657,60]
[332836262,1721562473432,-608.28145281,0.00044657,60]
[332836263,1721562473462,-500.0,0.00044657,60]
[332836264,1721562473494,-500.0,0.00044657,60]
[332836265,1721562473525,-500.0,0.00044657,60]
[332836266,1721562473555,-500.0,0.00044657,60]
[332836267,1721562473586,-1338.07,0.00044657,60]
[332836268,1721562473617,-1701.55,0.00044657,60]
[332836269,1721562473648,-789.11,0.00044657,60]
[332836270,1721562473679,-1241.72,0.00044657,60]
[332836271,1721562473712,-1872.58,0.00044657,60]
[332836272,1721562473746,-500.0,0.00044657,60]
[332836273,1721562473778,-1631.15,0.00044657,60]
[332836274,1721562473811,-500.0,0.00044657,60]
[332836275,1721562473843,-500.0,0.00044657,60]
[332836276,1721562473875,-582.44,0.00044657,60]
[332836277,1721562473908,-578.23,0.00044657,60]
[332836278,1721562473942,-500.0,0.00044657,60]
[332836279,1721562473977,-1866.37,0.00044657,60]
[332836280,1721562474012,-647.8,0.00044657,60]
[332836281,1721562474048,-500.0,0.00044657,60]
[332836282,1721562474081,-500.0,0.00044657,60]
[332836283,1721562474114,-500.0,0.00044657,60]
[332836284,1721562474150,-835.94,0.00044657,60]
[332836285,1721562474184,-1545.24,0.00044657,60]
[332836286,1721562474216,-1314.22,0.00044657,60]
[332836287,1721562474249,-500.0,0.00044657,60]
[332836288,1721562474281,-500.0,0.00044657,60]
[332836289,1721562474313,-788.87,0.00044657,60]
[332836290,1721562474346,-606.21,0.00044657,60]
[332836291,1721562474377,-500.0,0.00044657,60]
[332836292,1721562474409,-500.0,0.00044657,60]
[332836293,1721562474440,-500.0,0.00044657,60]
[332836294,1721562474471,-500.0,0.00044657,60]
[332836295,1721562474503,-815.98,0.00044657,60]
[332836296,1721562474541,-500.0,0.00044657,60]
[332836297,1721562474575,-507.25,0.00044657,60]
[332836298,1721562474607,-500.0,0.00044657,60]
[332836299,1721562474638,-960.08,0.00044657,60]
[332836300,1721562474670,-500.0,0.00044657,60]
[332836301,1721562474700,-500.0,0.00044657,60]
[332836302,1721562474734,-1241.56,0.00044657,60]
[332836303,1721562474767,-556.47,0.00044657,60]
[332836304,1721562474798,-500.0,0.00044657,60]
[332836305,1721562474828,-1359.26,0.00044657,60]
[332836306,1721562474859,-500.0,0.00044657,60]
[332836307,1721562474892,-500.0,0.00044657,60]
[332836308,1721562474924,-500.0,0.00044657,60]
[332836309,1721562474959,-500.0,0.00044657,60]
[332836310,1721562474993,-500.0,0.00044657,60]
[332836311,1721562475027,-500.0,0.00044657,60]
[332836312,1721562475064,-500.0,0.00044657,60]
[332836313,1721562475097,-938.43,0.00044657,60]
[332836314,1721562475130,-1502.83,0.00044657,60]
[332836315,1721562475163,-500.0,0.00044657,60]
[332836316,1721562475196,-314.43684307,0.00044657,60]
[332836317,1721562475230,-500.0,0.00044657,60]
[332836318,1721562475263,-859.1,0.00044657,60]
[332836319,1721562475294,-1061.95,0.00044657,60]
[332836320,1721562475326,-625.09,0.00044657,60]
[332836321,1721562475358,-500.0,0.00044657,60]
[332836322,1721562475391,-500.0,0.00044657,60]
[332836323,1721562475423,-917.46,0.00044657,60]
[332836324,1721562475456,-825.43,0.00044657,60]
[332836325,1721562475489,-583.35,0.00044657,60]
[332836326,1721562475521,-761.72,0.00044657,60]
[332836327,1721562475556,-500.0,0.00044657,60]
[332836328,1721562475588,-500.0,0.00044657,60]
[332836329,1721562475620,-500.0,0.00044657,60]
[332836330,1721562475656,-500.0,0.00044657,60]
[332836331,1721562475687,-506.32,0.00044657,60]
[332836332,1721562475723,-1209.94,0.00044657,60]
[332836333,1721562475755,-870.79,0.00044657,60]
[332836334,1721562475785,-611.60953227,0.00044657,60]
[332836335,1721562475816,-500.0,0.00044657,60]
[332836336,1721562475847,-2000.0,0.00044657,60]
[332836337,1721562475880,-1021.77,0.00044657,60]
[332836338,1721562475911,-800.19,0.00044657,60]
[332836339,1721562475944,-500.0,0.00044657,60]
[332836340,1721562475979,-849.87,0.00044657,60]
[332836341,1721562476012,-237.87394698,0.00044657,60]
[332836342,1721562476047,-500.0,0.00044657,60]
[332836343,1721562476079,-500.0,0.00044657,60]
[332836344,1721562476111,-605.06997489,0.00044657,60]
[332836345,1721562476343,-525.8,0.00044657,60]
[332836346,1721562476381,-1192.78,0.00044657,60]
[332836347,1721562476414,-500.0,0.00044657,60]
[332836348,1721562476446,-1211.68,0.00044657,60]
[332836349,1721562476477,-500.0,0.00044657,60]
[332836350,1721562476509,-500.0,0.00044657,60]
[332836351,1721562476544,-574.26,0.00044657,60]
[332836352,1721562476576,-1554.69,0.00044657,60]
[332836353,1721562476606,-500.0,0.00044657,60]
[332836354,1721562476637,-512.52,0.00044657,60]
[332836355,1721562476668,-500.0,0.00044657,60]
[332836356,1721562476699,-588.29,0.00044657,60]
[332836357,1721562476731,-500.0,0.00044657,60]
[332836358,1721562476764,-941.15,0.00044657,60]
[332836359,1721562476796,-568.53,0.00044657,60]
[332836360,1721562476827,-1619.53,0.00044657,60]
[332836361,1721562476859,-500.0,0.00044657,60]
[332836362,1721562476890,-972.08,0.00044657,60]
[332836363,1721562476923,-1283.54,0.00044657,60]